fUST/lending_fUST_20240805
["ID","MTS","AMOUNT","RATE_DAILY","PERIOD"]
[334183041,1722815442628,-500.0,0.00013698,2]
[334183043,1722815442638,-500.0,0.00013698,2]
[334183045,1722815442647,-500.0,0.00013698,2]
[334183047,1722815442657,-500.0,0.00013698,2]
[334183049,1722815442666,-500.0,0.00013698,2]
[334183051,1722815442676,-500.0,0.00013698,2]
[334183053,1722815442686,-500.0,0.00013698,2]
[334183055,1722815442696,-500.0,0.00013698,2]
[334183057,1722815442707,-500.0,0.00013698,2]
[334183059,1722815442716,-500.0,0.00013698,2]
[334183061,1722815442729,-500.0,0.00013698,2]
[334183063,1722815442740,-500.0,0.00013698,2]
[334183065,1722815442754,-500.0,0.00013698,2]
[334183067,1722815442763,-500.0,0.00013698,2]
[334183069,1722815442775,-500.0,0.00013698,2]
[334183071,1722815442784,-792.32,0.00013698,2]
[334183073,1722815442796,-500.0,0.00013698,2]
[334183075,1722815442805,-500.0,0.00013698,2]
[334183077,1722815442815,-500.0,0.00013698,2]
[334183080,1722815442827,-500.0,0.00013698,2]
[334183082,1722815442841,-500.0,0.00013698,2]
[334183084,1722815442853,-500.0,0.00013698,2]
[334183087,1722815442866,-500.0,0.00013698,2]
[334183089,1722815442880,-500.0,0.00013698,2]
[334183092,1722815442893,-500.0,0.00013698,2]
[334183094,1722815442904,-500.0,0.00013698,2]
[334183096,1722815442914,-500.0,0.00013698,2]
[334183098,1722815442925,-500.0,0.00013698,2]
[334183100,1722815442937,-500.0,0.00013698,2]
[334183103,1722815442948,-500.0,0.00013698,2]
[334183105,1722815442958,-2333.6674522,0.00013699,2]
[334183107,1722815442969,-428.932079,0.00013699,2]
[334183109,1722815442981,-194.5599409,0.00013699,2]
[334183112,1722815442993,-423.86783596,0.00013796,2]
[334183114,1722815443012,-15322.3587552,0.00013861,2]
[334183116,1722815443023,-1365.12,0.00013961,2]
[334183118,1722815443035,-15322.3587552,0.00013962,2]
[334183121,1722815443046,-1365.12,0.00013971,2]
[334183123,1722815443058,-1584.69,0.00013971,2]
[334183125,1722815443070,-500.0,0.00013972,2]
[334183127,1722815443082,-500.0,0.00013972,2]
[334183130,1722815443093,-500.0,0.00013972,2]
[334183132,1722815443103,-500.0,0.00013972,2]
[334183134,1722815443114,-500.0,0.00013972,2]
[334183136,1722815443126,-500.0,0.00013972,2]
[334183138,1722815443137,-263.33650425,0.00013972,2]
[334183140,1722815443150,-382.14207688,0.00013972,2]
[334183141,1722815443163,-500.0,0.00013972,2]
[334183142,1722815443174,-500.0,0.00013972,2]
[334183143,1722815443186,-500.0,0.00013972,2]
[334183144,1722815443196,-500.0,0.00013972,2]
[334183145,1722815443208,-500.0,0.00013972,2]
[334183146,1722815443218,-457.39478757,0.00013972,2]
[334183148,1722815443228,-500.0,0.00013972,2]
[334183150,1722815443238,-500.0,0.00013972,2]
[334183152,1722815443248,-500.0,0.00013972,2]
[334183154,1722815443259,-500.0,0.00013972,2]
[334183156,1722815443269,-500.0,0.00013972,2]
[334183158,1722815443282,-500.0,0.00013972,2]
[334183160,1722815443292,-500.0,0.00013972,2]
[334183163,1722815443304,-500.0,0.00013972,2]
[334183164,1722815443315,-500.0,0.00013972,2]
[334183166,1722815443327,-500.0,0.00013972,2]
[334183168,1722815443341,-500.0,0.00013972,2]
[334183171,1722815443354,-500.0,0.00013972,2]
[334183173,1722815443367,-500.0,0.00013972,2]
[334183175,1722815443379,-500.0,0.00013972,2]
[334183178,1722815443391,-500.0,0.00013972,2]
[334183180,1722815443403,-500.0,0.00013972,2]
[334183182,1722815443415,-500.0,0.00013972,2]
[334183184,1722815443427,-500.0,0.00013972,2]
[334183187,1722815443439,-500.0,0.00013972,2]
[334183189,1722815443449,-500.0,0.00013972,2]
[334183191,1722815443458,-500.0,0.00013972,2]
[334183193,1722815443471,-223.14955709,0.00013972,2]
[334183195,1722815443482,-500.0,0.00013972,2]
[334183197,1722815443493,-500.0,0.00013972,2]
[334183199,1722815443506,-500.0,0.00013972,2]
[334183201,1722815443517,-500.0,0.00013972,2]
[334183203,1722815443528,-500.0,0.00013972,2]
[334183206,1722815443539,-500.0,0.00013972,2]
[334183208,1722815443551,-500.0,0.00013972,2]
[334183210,1722815443560,-500.0,0.00013972,2]
[334183212,1722815443571,-500.0,0.00013972,2]
[334183214,1722815443584,-500.0,0.00013972,2]
[334183216,1722815443594,-500.0,0.00013972,2]
[334183219,1722815443605,-500.0,0.00013972,2]
[334183221,1722815443616,-500.0,0.00013972,2]
[334183223,1722815443627,-500.0,0.00013972,2]
[334183225,1722815443638,-500.0,0.00013972,2]
[334183227,1722815443649,-500.0,0.00013972,2]
[334183229,1722815443659,-500.0,0.00013972,2]
[334183231,1722815443668,-322.3701227,0.00013972,2]
[334183233,1722815443679,-500.0,0.00013972,2]
[334183236,1722815443689,-500.0,0.00013972,2]
[334183238,1722815443699,-500.0,0.00013972,2]
[334183240,1722815443711,-500.0,0.00013972,2]
[334183242,1722815443724,-500.0,0.00013972,2]
[334183244,1722815443735,-500.0,0.00013972,2]
[334183246,1722815443745,-500.0,0.00013972,2]
[334183248,1722815443761,-512.56776529,0.00013972,2]
[334183250,1722815443771,-500.0,0.00013972,2]
[334183253,1722815443783,-500.0,0.00013972,2]
[334183255,1722815443797,-500.0,0.00013972,2]
[334183257,1722815443809,-500.0,0.00013972,2]
[334183260,1722815443820,-500.0,0.00013972,2]
[334183261,1722815443832,-500.0,0.00013972,2]
[334183262,1722815443843,-500.0,0.00013972,2]
[334183263,1722815443856,-500.0,0.00013972,2]
[334183264,1722815443868,-500.0,0.00013972,2]
[334183266,1722815443879,-500.0,0.00013972,2]
[334183268,1722815443890,-582.44,0.00013972,2]
[334183270,1722815443901,-500.0,0.00013972,2]
[334183272,1722815443914,-500.0,0.00013972,2]
[334183274,1722815443927,-500.0,0.00013972,2]
[334183275,1722815443938,-500.0,0.00013972,2]
[334183276,1722815443948,-500.0,0.00013972,2]
[334183277,1722815443958,-500.0,0.00013972,2]
[334183278,1722815443969,-500.0,0.00013972,2]
[334183279,1722815443980,-500.0,0.00013972,2]
[334183280,1722815443990,-500.0,0.00013972,2]
[334183281,1722815444003,-500.0,0.00013972,2]
[334183282,1722815444018,-500.0,0.00013972,2]
[334183283,1722815444029,-500.0,0.00013972,2]
[334183284,1722815444039,-500.0,0.00013972,2]
[334183285,1722815444049,-500.0,0.00013972,2]
[334183286,1722815444059,-500.0,0.00013972,2]
[334183287,1722815444069,-500.0,0.00013972,2]
[334183288,1722815444080,-500.0,0.00013972,2]
[334183289,1722815444090,-500.0,0.00013972,2]
[334183290,1722815444100,-500.0,0.00013972,2]
[334183291,1722815444112,-500.0,0.00013972,2]
[334183292,1722815444122,-500.0,0.00013972,2]
[334183293,1722815444134,-500.0,0.00013972,2]
[334183294,1722815444145,-500.0,0.00013972,2]
[334183295,1722815444157,-500.0,0.00013972,2]
[334183296,1722815444168,-500.0,0.00013972,2]
[334183297,1722815444181,-500.0,0.00013972,2]
[334183298,1722815444193,-500.0,0.00013972,2]
[334183299,1722815444204,-500.0,0.00013972,2]
[334183300,1722815444215,-500.0,0.00013972,2]
[334183301,1722815444227,-500.0,0.00013972,2]
[334183302,1722815444239,-500.0,0.00013972,2]
[334183303,1722815444255,-500.0,0.00013972,2]
[334183304,1722815444266,-571.923507,0.00013972,2]
[334183305,1722815444277,-500.0,0.00013972,2]
[334183306,1722815444288,-224.98332313,0.00013972,2]
[334183307,1722815444298,-500.0,0.00013972,2]
[334183308,1722815444429,-500.0,0.00013972,2]
[334183309,1722815444445,-500.0,0.00013972,2]
[334183310,1722815444456,-500.0,0.00013972,2]
[334183311,1722815444466,-500.0,0.00013972,2]
[334183312,1722815444476,-500.0,0.00013972,2]
[334183313,1722815444489,-500.0,0.00013972,2]
[334183314,1722815444500,-500.0,0.00013972,2]
[334183315,1722815444510,-500.0,0.00013972,2]
[334183316,1722815444522,-500.0,0.00013972,2]
[334183317,1722815444532,-500.0,0.00013972,2]
[334183318,1722815444543,-500.0,0.00013972,2]
[334183319,1722815444553,-500.0,0.00013972,2]
[334183320,1722815444563,-500.0,0.00013972,2]
[334183321,1722815444572,-500.0,0.00013972,2]
[334183322,1722815444582,-500.0,0.00013972,2]
[334183323,1722815444591,-500.0,0.00013972,2]
[334183324,1722815444600,-500.0,0.00013972,2]
[334183325,1722815444609,-500.0,0.00013972,2]
[334183326,1722815444618,-500.0,0.00013972,2]
[334183327,1722815444627,-500.0,0.00013972,2]
[334183328,1722815444636,-500.0,0.00013972,2]
[334183329,1722815444646,-792.32,0.00013972,2]
[334183330,1722815444655,-500.0,0.00013972,2]
[334183331,1722815444664,-500.0,0.00013972,2]
[334183332,1722815444673,-500.0,0.00013972,2]
[334183333,1722815444684,-500.0,0.00013972,2]
[334183334,1722815444694,-500.0,0.00013972,2]
[334183335,1722815444705,-500.0,0.00013972,2]
[334183336,1722815444717,-500.0,0.00013972,2]
[334183337,1722815444730,-500.0,0.00013972,2]
[334183338,1722815444739,-500.0,0.00013972,2]
[334183339,1722815444750,-150.112233,0.00014,2]
[334183340,1722815444761,-423.86783596,0.00014004,2]
[334183341,1722815444771,-1968.79533558,0.00014099,2]
[334183342,1722815444780,-423.86783596,0.00014211,2]
[334183343,1722815444791,-2949.18395141,0.00014236,2]
[334183344,1722815444846,-12373.17480379,0.00014236,2]
[334183345,1722815444856,-1584.69,0.00014245,2]
[334183346,1722815444865,-500.0,0.00014246,2]
[334183347,1722815444877,-312.49511811,0.00014246,2]
[334183349,1722815444887,-500.0,0.00014246,2]
[334183350,1722815444897,-500.0,0.00014246,2]
[334183351,1722815444908,-347.33961437,0.00014246,2]
[334183353,1722815444919,-500.0,0.00014246,2]
[334183354,1722815444928,-500.0,0.00014246,2]
[334183355,1722815444938,-500.0,0.00014246,2]
[334183356,1722815444949,-524.34719696,0.00014246,2]
[334183357,1722815444958,-500.0,0.00014246,2]
[334183358,1722815444968,-500.0,0.00014246,2]
[334183359,1722815444981,-500.0,0.00014246,2]
[334183360,1722815444992,-500.0,0.00014246,2]
[334183361,1722815445003,-500.0,0.00014246,2]
[334183362,1722815445012,-500.0,0.00014246,2]
[334183363,1722815445021,-500.0,0.00014246,2]
[334183364,1722815445031,-500.0,0.00014246,2]
[334183365,1722815445040,-500.0,0.00014246,2]
[334183366,1722815445049,-500.0,0.00014246,2]
[334183367,1722815445058,-500.0,0.00014246,2]
[334183368,1722815445067,-500.0,0.00014246,2]
[334183369,1722815445076,-500.0,0.00014246,2]
[334183370,1722815445085,-500.0,0.00014246,2]
[334183371,1722815445095,-500.0,0.00014246,2]
[334183372,1722815445105,-500.0,0.00014246,2]
[334183373,1722815445114,-500.0,0.00014246,2]
[334183374,1722815445123,-500.0,0.00014246,2]
[334183375,1722815445132,-500.0,0.00014246,2]
[334183376,1722815445142,-500.0,0.00014246,2]
[334183377,1722815445151,-500.0,0.00014246,2]
[334183378,1722815445160,-500.0,0.00014246,2]
[334183379,1722815445169,-500.0,0.00014246,2]
[334183380,1722815445179,-500.0,0.00014246,2]
[334183381,1722815445189,-500.0,0.00014246,2]
[334183382,1722815445199,-500.0,0.00014246,2]
[334183383,1722815445209,-500.0,0.00014246,2]
[334183384,1722815445219,-500.0,0.00014246,2]
[334183385,1722815445228,-500.0,0.00014246,2]
[334183386,1722815445238,-500.0,0.00014246,2]
[334183387,1722815445248,-500.0,0.00014246,2]
[334183388,1722815445258,-582.44,0.00014246,2]
[334183389,1722815445266,-500.0,0.00014246,2]
[334183390,1722815445275,-500.0,0.00014246,2]
[334183391,1722815445284,-500.0,0.00014246,2]
[334183392,1722815445294,-500.0,0.00014246,2]
[334183393,1722815445303,-500.0,0.00014246,2]
[334183394,1722815445312,-500.0,0.00014246,2]
[334183395,1722815445322,-500.0,0.00014246,2]
[334183396,1722815445331,-500.0,0.00014246,2]
[334183397,1722815445340,-500.0,0.00014246,2]
[334183398,1722815445350,-500.0,0.00014246,2]
[334183399,1722815445359,-500.0,0.00014246,2]
[334183400,1722815445368,-500.0,0.00014246,2]
[334183401,1722815445378,-500.0,0.00014246,2]
[334183402,1722815445387,-500.0,0.00014246,2]
[334183403,1722815445397,-500.0,0.00014246,2]
[334183404,1722815445406,-500.0,0.00014246,2]
[334183405,1722815445417,-500.0,0.00014246,2]
[334183406,1722815445427,-502.73680746,0.00014246,2]
[334183407,1722815445436,-500.0,0.00014246,2]
[334183408,1722815445447,-500.0,0.00014246,2]
[334183409,1722815445457,-500.0,0.00014246,2]
[334183410,1722815445466,-500.0,0.00014246,2]
[334183411,1722815445475,-500.0,0.00014246,2]
[334183412,1722815445484,-500.0,0.00014246,2]
[334183413,1722815445494,-500.0,0.00014246,2]
[334183414,1722815445504,-457.7,0.00014246,2]
[334183415,1722815445513,-500.0,0.00014246,2]
[334183416,1722815445522,-500.0,0.00014246,2]
[334183418,1722815445534,-183.88346565,0.00014246,2]
[334183419,1722815445544,-245.74553466,0.00014246,2]
[334183421,1722815445557,-254.25446534,0.00014246,2]
[334183423,1722815445567,-500.0,0.00014246,2]
[334183425,1722815445578,-500.0,0.00014246,2]
[334183426,1722815445588,-500.0,0.00014246,2]
[334183427,1722815445598,-500.0,0.00014246,2]
[334183428,1722815445609,-500.0,0.00014246,2]
[334183429,1722815445619,-500.0,0.00014246,2]
[334183430,1722815445629,-500.0,0.00014246,2]
[334183431,1722815445639,-500.0,0.00014246,2]
[334183432,1722815445649,-500.0,0.00014246,2]
[334183433,1722815445659,-500.0,0.00014246,2]
[334183434,1722815445669,-328.82891897,0.00014246,2]
[334183435,1722815445682,-171.17108103,0.00014246,2]
[334183436,1722815445691,-500.0,0.00014246,2]
[334183437,1722815445701,-500.0,0.00014246,2]
[334183438,1722815445712,-500.0,0.00014246,2]
[334183439,1722815445724,-627.45709468,0.00014246,2]
[334183440,1722815445733,-354.68673864,0.00014246,2]
[334183441,1722815445901,-1898.31399764,9.122e-05,2]
[334183442,1722815445911,-145.31326136,0.00014246,2]
[334183443,1722815445922,-500.0,0.00014246,2]
[334183444,1722815445933,-500.0,0.00014246,2]
[334183445,1722815445943,-792.32,0.00014246,2]
[334183447,1722815445952,-500.0,0.00014246,2]
[334183449,1722815445961,-154.23634512,0.00014246,2]
[334183460,1722815448016,-500.0,0.00013698,2]
[334183461,1722815448025,-500.0,0.00013972,2]
[334183463,1722815448035,-345.76365488,0.00014246,2]
[334183464,1722815448046,-500.0,0.00014246,2]
[334183465,1722815448055,-419.592517,0.00014246,2]
[334183466,1722815448065,-500.0,0.00014246,2]
[334183467,1722815448075,-500.0,0.00014246,2]
[334183468,1722815448085,-500.0,0.00014246,2]
[334183469,1722815448095,-500.0,0.00014246,2]
[334183470,1722815448105,-167.24466,0.00014247,2]
[334183471,1722815448116,-452.418049,0.00014247,2]
[334183472,1722815448126,-423.86783596,0.00014419,2]
[334183473,1722815448135,-1365.12,0.00014508,2]
[334183474,1722815448145,-15322.3587552,0.0001451,2]
[334183476,1722815448156,-774.43,0.00014519,2]
[334183478,1722815448166,-500.0,0.00014519,2]
[334183480,1722815448175,-500.0,0.00014519,2]
[334183481,1722815448185,-500.0,0.00014519,2]
[334183482,1722815448195,-1584.69,0.00014519,2]
[334183483,1722815448204,-500.0,0.0001452,2]
[334183484,1722815448214,-309.98,0.0001452,2]
[334183485,1722815448224,-179.17,0.0001452,2]
[334183486,1722815448234,-500.0,0.0001452,2]
[334183487,1722815448244,-500.0,0.0001452,2]
[334183488,1722815448257,-500.0,0.0001452,2]
[334183489,1722815448266,-500.0,0.0001452,2]
[334183490,1722815448276,-500.0,0.0001452,2]
[334183491,1722815448285,-500.0,0.0001452,2]
[334183492,1722815448295,-500.0,0.0001452,2]
[334183493,1722815448305,-500.0,0.0001452,2]
[334183494,1722815448315,-500.0,0.0001452,2]
[334183495,1722815448325,-500.0,0.0001452,2]
[334183496,1722815448335,-412.30774159,0.0001452,2]
[334183497,1722815448344,-370.55,0.0001452,2]
[334183498,1722815448354,-500.0,0.0001452,2]
[334183499,1722815448364,-500.0,0.0001452,2]
[334183500,1722815448375,-500.0,0.0001452,2]
[334183501,1722815448385,-582.44,0.0001452,2]
[334183502,1722815448395,-500.0,0.0001452,2]
[334183503,1722815448404,-500.0,0.0001452,2]
[334183504,1722815448414,-500.0,0.0001452,2]
[334183505,1722815448423,-201.39,0.0001452,2]
[334183506,1722815448435,-503.88551038,0.0001452,2]
[334183507,1722815448445,-500.0,0.0001452,2]
[334183508,1722815448454,-500.0,0.0001452,2]
[334183509,1722815448464,-500.0,0.0001452,2]
[334183510,1722815448473,-500.0,0.0001452,2]
[334183511,1722815448483,-500.0,0.0001452,2]
[334183512,1722815448493,-500.0,0.0001452,2]
[334183513,1722815448507,-500.0,0.0001452,2]
[334183514,1722815448517,-500.0,0.0001452,2]
[334183515,1722815448527,-500.0,0.0001452,2]
[334183516,1722815448538,-500.0,0.0001452,2]
[334183517,1722815448548,-500.0,0.0001452,2]
[334183518,1722815448558,-500.0,0.0001452,2]
[334183519,1722815448568,-500.0,0.0001452,2]
[334183520,1722815448577,-500.0,0.0001452,2]
[334183521,1722815448587,-500.0,0.0001452,2]
[334183522,1722815448597,-500.0,0.0001452,2]
[334183523,1722815448608,-500.0,0.0001452,2]
[334183524,1722815448618,-500.0,0.0001452,2]
[334183525,1722815448627,-500.0,0.0001452,2]
[334183526,1722815448637,-500.0,0.0001452,2]
[334183527,1722815448646,-500.0,0.0001452,2]
[334183528,1722815448656,-500.0,0.0001452,2]
[334183529,1722815448665,-500.0,0.0001452,2]
[334183530,1722815448675,-500.0,0.0001452,2]
[334183531,1722815448685,-500.0,0.0001452,2]
[334183532,1722815448696,-500.0,0.0001452,2]
[334183533,1722815448705,-500.0,0.0001452,2]
[334183534,1722815448716,-500.0,0.0001452,2]
[334183535,1722815448730,-500.0,0.0001452,2]
[334183536,1722815448739,-500.0,0.0001452,2]
[334183537,1722815448748,-792.32,0.0001452,2]
[334183538,1722815448761,-500.0,0.0001452,2]
[334183539,1722815448770,-267.31468972,0.0001452,2]
[334183540,1722815448780,-500.0,0.0001452,2]
[334183541,1722815448789,-500.0,0.0001452,2]
[334183542,1722815448801,-500.0,0.0001452,2]
[334183543,1722815448810,-1091.57771247,0.0001469,2]
[334183544,1722815448820,-336.12056396,0.0001469,2]
[334183545,1722815448829,-200.0,0.00014694,2]
[334183546,1722815448838,-9195.897863,0.00014694,2]
[334183547,1722815448848,-1365.12,0.00014792,2]
[334183548,1722815448858,-774.43,0.00014793,2]
[334183549,1722815448868,-500.0,0.00014793,2]
[334183550,1722815448878,-500.0,0.00014793,2]
[334183551,1722815448887,-500.0,0.00014794,2]
[334183552,1722815448897,-500.0,0.00014794,2]
[334183553,1722815448906,-380.11164984,0.00014794,2]
[334183554,1722815448915,-500.0,0.00014794,2]
[334183555,1722815448925,-500.0,0.00014794,2]
[334183556,1722815448935,-500.0,0.00014794,2]
[334183557,1722815448944,-500.0,0.00014794,2]
[334183558,1722815448953,-500.0,0.00014794,2]
[334183559,1722815448962,-582.44,0.00014794,2]
[334183560,1722815448972,-500.0,0.00014794,2]
[334183561,1722815448983,-500.0,0.00014794,2]
[334183562,1722815448992,-500.0,0.00014794,2]
[334183563,1722815449001,-500.0,0.00014794,2]
[334183564,1722815449012,-500.0,0.00014794,2]
[334183565,1722815449022,-500.0,0.00014794,2]
[334183566,1722815449031,-500.0,0.00014794,2]
[334183567,1722815449041,-500.0,0.00014794,2]
[334183568,1722815449051,-500.0,0.00014794,2]
[334183569,1722815449061,-500.0,0.00014794,2]
[334183570,1722815449071,-500.0,0.00014794,2]
[334183571,1722815449081,-500.0,0.00014794,2]
[334183572,1722815449090,-500.0,0.00014794,2]
[334183573,1722815449100,-500.0,0.00014794,2]
[334183574,1722815449110,-391.76,0.00014794,2]
[334183575,1722815449228,-500.0,0.00014794,2]
[334183576,1722815449238,-500.0,0.00014794,2]
[334183577,1722815449248,-616.82,0.00014794,2]
[334183578,1722815449261,-500.0,0.00014794,2]
[334183579,1722815449271,-500.0,0.00014794,2]
[334183580,1722815449281,-500.0,0.00014794,2]
[334183581,1722815449291,-500.0,0.00014794,2]
[334183582,1722815449301,-503.54,0.00014794,2]
[334183583,1722815449311,-500.0,0.00014794,2]
[334183584,1722815449321,-792.32,0.00014794,2]
[334183585,1722815449330,-500.0,0.00014794,2]
[334183586,1722815449341,-500.0,0.00014794,2]
[334183587,1722815449351,-500.0,0.00014794,2]
[334183588,1722815449360,-500.0,0.00014794,2]
[334183589,1722815449370,-200.0,0.00014795,2]
[334183590,1722815449380,-156.012054,0.00014968,2]
[334183591,1722815449390,-2847.71475529,0.00015,2]
[334183592,1722815449400,-1108.76834352,0.00015,2]
[334183593,1722815449411,-1060.99846949,0.00015,2]
[334183594,1722815449421,-4439.31591907,0.00015058,5]
[334183595,1722815449431,-15322.3587552,0.00015058,2]
[334183596,1722815449440,-774.43,0.00015067,2]
[334183597,1722815449449,-500.0,0.00015067,2]
[334183598,1722815449459,-500.0,0.00015067,2]
[334183599,1722815449469,-260.88,0.00015068,2]
[334183600,1722815449479,-500.0,0.00015068,2]
[334183601,1722815449489,-500.0,0.00015068,2]
[334183602,1722815449498,-500.0,0.00015068,2]
[334183603,1722815449512,-582.44,0.00015068,2]
[334183604,1722815449527,-500.0,0.00015068,2]
[334183605,1722815449537,-500.0,0.00015068,2]
[334183606,1722815449546,-500.0,0.00015068,2]
[334183607,1722815449556,-636.24,0.00015068,2]
[334183608,1722815449566,-500.0,0.00015068,2]
[334183609,1722815449577,-500.0,0.00015068,2]
[334183610,1722815449586,-500.0,0.00015068,2]
[334183611,1722815449595,-561.66,0.00015068,2]
[334183612,1722815449605,-500.0,0.00015068,2]
[334183613,1722815449615,-500.0,0.00015068,2]
[334183614,1722815449624,-500.0,0.00015068,2]
[334183615,1722815449634,-634.42,0.00015068,2]
[334183616,1722815449643,-223.83,0.00015068,2]
[334183617,1722815449653,-500.0,0.00015068,2]
[334183618,1722815449662,-792.32,0.00015068,2]
[334183619,1722815449671,-370.98,0.00015068,2]
[334183620,1722815449681,-500.0,0.00015068,2]
[334183621,1722815449690,-500.0,0.00015068,2]
[334183622,1722815449700,-2000.0,0.00015241,2]
[334183623,1722815449710,-1365.12,0.0001533,2]
[334183624,1722815449723,-1584.69,0.0001534,2]
[334183625,1722815449733,-774.43,0.00015341,2]
[334183626,1722815449743,-500.0,0.00015341,2]
[334183627,1722815449757,-474.9546652,0.00015341,2]
[334183628,1722815449775,-25.0453348,0.00015341,2]
[334183629,1722815449784,-582.44,0.00015342,2]
[334183630,1722815449794,-234.94,0.00015342,2]
[334183631,1722815449805,-500.0,0.00015342,2]
[334183632,1722815449814,-500.0,0.00015342,2]
[334183633,1722815449823,-421.7175968,0.00015342,2]
[334183634,1722815449833,-402.16,0.00015342,2]
[334183635,1722815449843,-500.0,0.00015342,2]
[334183636,1722815449851,-520.3,0.00015342,2]
[334183637,1722815449862,-500.0,0.00015342,2]
[334183638,1722815449873,-792.32,0.00015342,2]
[334183639,1722815449883,-421.07706838,0.00015342,2]
[334183640,1722815449897,-78.92293162,0.00015342,2]
[334183641,1722815449908,-500.0,0.00015342,2]
[334183642,1722815449918,-367.88690048,0.00015386,2]
[334183643,1722815449927,-6355.37449435,0.00015412,2]
[334183644,1722815449938,-1571.5716624,0.00015608,2]
[334183645,1722815449948,-774.43,0.00015615,2]
[334183646,1722815449959,-500.0,0.00015615,2]
[334183647,1722815449970,-582.44,0.00015616,2]
[334183648,1722815449982,-500.0,0.00015616,2]
[334183649,1722815449993,-500.0,0.00015616,2]
[334183650,1722815450006,-792.32,0.00015616,2]
[334183651,1722815450017,-500.0,0.00015616,2]
[334183652,1722815450027,-6843.27782705,0.00015659,2]
[334183653,1722815450036,-10936.59020053,0.00015698,2]
[334183664,1722816340635,5000.0,0.00027,120]
[334183773,1722816633880,-300.0,9.998e-05,2]
[334183776,1722816633891,-166.0,9.999e-05,2]
[334183788,1722816634001,-437.79164827,9.999e-05,2]
[334183790,1722816634012,-533.92328189,9.999e-05,2]
[334183792,1722816634022,-523.06806918,9.999e-05,2]
[334183794,1722816634032,-600.8534117,9.999e-05,2]
[334183796,1722816634045,-532.14086008,9.999e-05,2]
[334183798,1722816634054,-727.52933543,9.999e-05,2]
[334183800,1722816634064,-50.19356603,9.999e-05,2]
[334183802,1722816634075,-104.62838872,9.999e-05,2]
[334183804,1722816634086,-288.53209712,9.999e-05,2]
[334183806,1722816634096,-190.40626354,9.999e-05,2]
[334183809,1722816634112,-604.99998376,9.999e-05,2]
[334183811,1722816634124,-147.20633207,9.999e-05,2]
[334183813,1722816634133,-849.39914621,9.999e-05,2]
[334183815,1722816634143,-250.3410689,9.999e-05,2]
[334183817,1722816634153,-154.82195475,9.999e-05,2]
[334183819,1722816634163,-779.66389887,9.999e-05,2]
[334183821,1722816634173,-154.82195475,9.999e-05,2]
[334183823,1722816634183,-543.08033697,9.999e-05,2]
[334183825,1722816634193,-156.96415589,9.999e-05,2]
[334183827,1722816634203,-180.4790292,9.999e-05,2]
[334183829,1722816634214,-183.10678503,9.999e-05,2]
[334183831,1722816634224,-403.74175046,9.999e-05,2]
[334183833,1722816634233,-165.62828221,9.999e-05,2]
[334183835,1722816634242,-209.18351946,9.999e-05,2]
[334183837,1722816634252,-160.1642143,9.999e-05,2]